fUSD/lending_fUSD_20260613
["ID","MTS","AMOUNT","RATE_DAILY","PERIOD"]
[424959189,1781356171000,-2507.3954,7.67e-05,2]
[424959188,1781356171000,-6821.7941,7.67e-05,2]
[424959187,1781356171000,-284.2310943,7.669e-05,2]
[424959186,1781356171000,-198.177,7.614e-05,2]
[424959183,1781356171000,-289.1625346,7.611e-05,2]
[424959184,1781356171000,-250.0,7.614e-05,2]
[424959182,1781356171000,-500.0,7.611e-05,2]
[424959180,1781356171000,-500.0,7.611e-05,2]
[424959181,1781356171000,-500.0,7.611e-05,2]
[424959179,1781356171000,-500.0,7.611e-05,2]
[424959178,1781356171000,-500.0,7.611e-05,2]
[424959194,1781356171000,-150.0,7.918e-05,2]
[424959185,1781356171000,-2523.702,7.614e-05,2]
[424959196,1781356171000,-7551.203731,7.945e-05,2]
[424959201,1781356171000,-398.31667917,8.219e-05,2]
[424959197,1781356171000,-150.0,7.994e-05,2]
[424959195,1781356171000,-150.0,7.944e-05,2]
[424959214,1781356171000,-13105.74976855,9.04e-05,2]
[424959211,1781356171000,-255.0,8.739e-05,2]
[424959212,1781356171000,-535.35,8.86e-05,2]
[424959209,1781356171000,-4124.08,8.53e-05,2]
[424959210,1781356171000,-2000.0,8.549e-05,2]
[424959208,1781356171000,-7856.87,8.507e-05,2]
[424959207,1781356171000,-250.0,8.374e-05,2]
[424959213,1781356171000,-630.38861052,9.005e-05,2]
[424959204,1781356171000,-250.0,8.373e-05,2]
[424959205,1781356171000,-300.0,8.373e-05,2]
[424959203,1781356171000,-500.0,8.373e-05,2]
[424959202,1781356171000,-300.0,8.373e-05,2]
[424959215,1781356171000,2000.0,0.00021,120]
[424959199,1781356171000,-200.0,8.07e-05,2]
[424959198,1781356171000,-1266.80418032,8e-05,2]
[424959200,1781356171000,-500.0,8.219e-05,2]
[424959206,1781356171000,-774.30738054,8.374e-05,2]
[424959216,1781356205000,-2075.76036953,7.57e-05,2]
[424959217,1781356228000,-1855.9555727,7.57e-05,2]
[424959218,1781356229000,-10000.0,7.57e-05,2]
[424959219,1781356230000,-10000.0,7.57e-05,2]
[424959220,1781356231000,-5650.0,7.57e-05,2]
[424959296,1781356253000,-5032.08514418,7.57e-05,2]
[424959289,1781356253000,-2064.53357593,7.57e-05,2]
[424959295,1781356253000,-1296.66477383,7.57e-05,2]
[424959294,1781356253000,-688.86301301,7.57e-05,2]
[424959293,1781356253000,-2490.57914543,7.57e-05,2]
[424959291,1781356253000,-417.51182976,7.57e-05,2]
[424959292,1781356253000,-971.72153587,7.57e-05,2]
[424959297,1781356253000,-621.68981601,7.57e-05,2]
[424959298,1781356253000,-737.550189,7.57e-05,2]
[424959290,1781356253000,-1264.87240786,7.57e-05,2]
[424959301,1781356253000,-361.68472692,7.57e-05,2]
[424959302,1781356253000,-431.72491626,7.57e-05,2]
[424959300,1781356253000,-7551.20373078,7.57e-05,2]
[424959304,1781356253000,-27183.23540744,7.57e-05,2]
[424959299,1781356253000,-3516.2112683,7.57e-05,2]
[424959303,1781356253000,-153071.00892473,7.57e-05,2]
[424959306,1781356253000,-170289.63783587,7.57e-05,2]
[424959305,1781356253000,-9424.82904552,7.57e-05,2]
[424959308,1781356253000,-1855.9555727,7.57e-05,2]
[424959307,1781356253000,-1049.24108504,7.57e-05,2]
[424959310,1781356254000,-265963.17541333,7.57e-05,2]
[424959311,1781356254000,-160.0,7.653e-05,2]
[424959309,1781356254000,-2226.39,7.57e-05,2]
[424959312,1781356254000,-99389.1208,7.67e-05,2]
[424959313,1781356254000,-300.0,8.327e-05,2]
[424959317,1781356254000,-300.0,8.487e-05,2]
[424959318,1781356254000,-536.79,8.733e-05,2]
[424959315,1781356254000,-559.34228233,8.327e-05,2]
[424959316,1781356254000,-250.0,8.327e-05,2]
[424959314,1781356254000,-193.0,8.327e-05,2]
[424959359,1781356255000,-3031.83,9.713e-05,2]
[424959348,1781356255000,-3031.83,9.664e-05,2]
[424959346,1781356255000,-738.88,9.653e-05,2]
[424959343,1781356255000,-738.88,9.642e-05,2]
[424959357,1781356255000,-738.88,9.709e-05,2]
[424959353,1781356255000,-738.88,9.687e-05,2]
[424959351,1781356255000,-2298.22,9.679e-05,2]
[424959358,1781356255000,-2298.22,9.711e-05,2]
[424959354,1781356255000,-3031.83,9.689e-05,2]
[424959356,1781356255000,-738.88,9.698e-05,2]
[424959360,1781356255000,-4130.0,9.719e-05,2]
[424959368,1781356255000,-738.88,9.751e-05,2]
[424959355,1781356255000,-2298.22,9.695e-05,2]
[424959361,1781356255000,-738.88,9.72e-05,2]
[424959365,1781356255000,-3031.83,9.737e-05,2]
[424959362,1781356255000,-2298.22,9.727e-05,2]
[424959364,1781356255000,-960.0,9.733e-05,2]
[424959371,1781356255000,-316.8,9.764e-05,2]
[424959363,1781356255000,-738.88,9.73e-05,2]
[424959366,1781356255000,-738.88,9.741e-05,2]
[424959369,1781356255000,-316.81,9.759e-05,2]
[424959367,1781356255000,-2298.22,9.743e-05,2]
[424959347,1781356255000,-2298.22,9.662e-05,2]
[424959352,1781356255000,-4130.0,9.685e-05,2]
[424959342,1781356255000,-3031.83,9.639e-05,2]
[424959321,1781356255000,-1000.0,9.039e-05,2]
[424959344,1781356255000,-2298.22,9.645e-05,2]
[424959370,1781356255000,-316.8,9.761e-05,2]
[424959319,1781356255000,-312.0,9.033e-05,2]
[424959322,1781356255000,-31204.38232134,9.04e-05,2]
[424959323,1781356255000,-5565.4,9.143e-05,2]
[424959328,1781356255000,-11322.63,9.517e-05,2]
[424959327,1781356255000,-250.0,9.43e-05,2]
[424959326,1781356255000,-1000.0,9.43e-05,2]
[424959325,1781356255000,-200.0,9.423e-05,2]
[424959320,1781356255000,-316.0,9.033e-05,2]
[424959329,1781356255000,-166.66,9.525e-05,2]
[424959338,1781356255000,-2000.0,9.617e-05,2]
[424959341,1781356255000,-738.88,9.63e-05,2]
[424959330,1781356255000,-2298.22,9.591e-05,2]
[424959339,1781356255000,-738.88,9.618e-05,2]
[424959331,1781356255000,-316.8,9.593e-05,2]
[424959336,1781356255000,-3031.83,9.612e-05,2]
[424959335,1781356255000,-433.0,9.612e-05,2]
[424959332,1781356255000,-738.88,9.593e-05,2]
[424959333,1781356255000,-738.88,9.606e-05,2]
[424959334,1781356255000,-2298.22,9.609e-05,2]
[424959349,1781356255000,-738.88,9.665e-05,2]
[424959350,1781356255000,-738.88,9.676e-05,2]
[424959340,1781356255000,-2298.22,9.627e-05,2]
[424959345,1781356255000,-4130.0,9.65e-05,2]
[424959337,1781356255000,-4130.0,9.613e-05,2]
[424959372,1781356255000,-166.66,9.839e-05,2]
[424959324,1781356255000,-409.09707871,9.396e-05,2]
[424959373,1781356255000,-6254.7476,9.973e-05,2]
[424959402,1781356255000,-736.0,0.00010574,2]
[424959406,1781356255000,-242.103,0.00010608,2]
[424959403,1781356255000,-233.11,0.00010608,2]
[424959408,1781356255000,-248.277,0.00010608,2]
[424959407,1781356255000,-250.0,0.00010608,2]
[424959409,1781356255000,-167.753,0.00010608,2]
[424959411,1781356255000,-167.578,0.00010608,2]
[424959410,1781356255000,-195.375,0.00010608,2]
[424959412,1781356255000,-247.911,0.00010608,2]
[424959414,1781356255000,-3383.58,0.00010779,2]
[424959416,1781356255000,-151.0,0.00010804,2]
[424959404,1781356255000,-250.0,0.00010608,2]
[424959413,1781356255000,-2000.0,0.00010686,2]
[424959415,1781356255000,-166.66,0.00010783,2]
[424959418,1781356255000,-151.0,0.00010804,2]
[424959421,1781356255000,-174.960488,0.00010877,2]
[424959420,1781356255000,-221.34,0.00010804,2]
[424959419,1781356255000,-151.0,0.00010804,2]
[424959423,1781356255000,-2377.310414,0.00010877,2]
[424959422,1781356255000,-565.183051,0.00010877,2]
[424959425,1781356255000,-353.679322,0.00010877,2]
[424959426,1781356255000,-960.0,0.00010949,2]
[424959427,1781356255000,-500.0,0.00010958,2]
[424959375,1781356255000,-1000.0,0.0001,2]
[424959417,1781356255000,-151.0,0.00010804,2]
[424959401,1781356255000,-3383.58,0.00010529,2]
[424959424,1781356255000,-2366.060162,0.00010877,2]
[424959399,1781356255000,-384.913074,0.0001047,2]
[424959377,1781356255000,-1000.0,0.0001,2]
[424959374,1781356255000,-1000.0,0.0001,2]
[424959376,1781356255000,-1000.0,0.0001,2]
[424959382,1781356255000,-1000.0,0.0001,2]
[424959379,1781356255000,-1000.0,0.0001,2]
[424959380,1781356255000,-1000.0,0.0001,2]
[424959378,1781356255000,-1000.0,0.0001,2]
[424959395,1781356255000,-1275.0,0.00010396,2]
[424959384,1781356255000,-3383.58,0.00010027,2]
[424959383,1781356255000,-290.19160219,0.0001,2]
[424959386,1781356255000,-166.66,0.00010154,2]
[424959385,1781356255000,-250.0,0.00010057,2]
[424959381,1781356255000,-1000.0,0.0001,2]
[424959388,1781356255000,-1125.99999999,0.00010364,2]
[424959405,1781356255000,-150.0,0.00010608,2]
[424959387,1781356255000,-3383.58,0.00010278,2]
[424959397,1781356255000,-166.66,0.00010468,2]
[424959400,1781356255000,-1509.106966,0.0001047,2]
[424959396,1781356255000,-845.46,0.000104,2]
[424959398,1781356255000,-488.524199,0.0001047,2]
[424959390,1781356255000,-27574.23302188,0.0001038,2]
[424959392,1781356255000,-72768.83721174,0.0001038,2]
[424959391,1781356255000,-48644.21552886,0.0001038,2]
[424959393,1781356255000,-98458.8165,0.0001038,2]
[424959389,1781356255000,-10448.68045002,0.0001038,2]
[424959394,1781356255000,-1359.0,0.00010396,2]
[424959463,1781356256000,-249.66496614,0.00011244,2]
[424959466,1781356256000,-150.0,0.00011244,2]
[424959462,1781356256000,-150.0,0.00011244,2]
[424959460,1781356256000,-166.66,0.00011178,2]
[424959455,1781356256000,-49600.63423265,0.00011099,2]
[424959458,1781356256000,-49600.63423265,0.00011099,2]
[424959459,1781356256000,-49600.63423265,0.00011099,2]
[424959457,1781356256000,-49600.63423265,0.00011099,2]
[424959456,1781356256000,-49600.63423265,0.00011099,2]
[424959461,1781356256000,-150.0,0.00011233,2]
[424959470,1781356256000,-6718.17,0.00011281,2]
[424959476,1781356256000,-435.89,0.00011281,2]
[424959465,1781356256000,-282.82905649,0.00011244,2]
[424959468,1781356256000,-150.0,0.00011244,2]
[424959464,1781356256000,-150.0,0.00011244,2]
[424959469,1781356256000,-150.0,0.00011244,2]
[424959472,1781356256000,-150.99,0.00011281,2]
[424959471,1781356256000,-299.99,0.00011281,2]
[424959474,1781356256000,-9999.99,0.00011281,2]
[424959475,1781356256000,-999.99,0.00011281,2]
[424959473,1781356256000,-3724.16,0.00011281,2]
[424959477,1781356256000,-9999.99,0.00011281,2]
[424959454,1781356256000,-49600.63423265,0.00011099,2]
[424959467,1781356256000,-150.0,0.00011244,2]
[424959452,1781356256000,-2000.0,0.00011099,2]
[424959440,1781356256000,-166.66,0.00011097,2]
[424959450,1781356256000,-22095.17790713,0.00011099,2]
[424959481,1781356256000,-150.0,0.00011324,2]
[424959428,1781356256000,-500.0,0.00010958,2]
[424959430,1781356256000,-500.0,0.00010958,2]
[424959429,1781356256000,-500.0,0.00010958,2]
[424959431,1781356256000,-500.0,0.00010958,2]
[424959433,1781356256000,-150.0,0.00010959,2]
[424959439,1781356256000,-678.98656293,0.00011089,2]
[424959434,1781356256000,-166.66,0.00010959,2]
[424959432,1781356256000,-150.0,0.00010959,2]
[424959437,1781356256000,-536.62,0.00011068,2]
[424959436,1781356256000,-3383.58,0.0001103,2]
[424959438,1781356256000,-166.66,0.00011068,2]
[424959435,1781356256000,-8546.32623551,0.00010999,2]
[424959443,1781356256000,-1108.95049288,0.00011098,3]
[424959442,1781356256000,-500.0,0.00011098,2]
[424959445,1781356256000,-22095.17790713,0.00011099,2]
[424959444,1781356256000,-22095.17790716,0.00011099,2]
[424959441,1781356256000,-500.0,0.00011098,2]
[424959446,1781356256000,-22095.17790713,0.00011099,2]
[424959448,1781356256000,-22095.17790713,0.00011099,2]
[424959451,1781356256000,-250.0,0.00011099,2]
[424959449,1781356256000,-22095.17790713,0.00011099,2]
[424959447,1781356256000,-22095.17790713,0.00011099,2]
[424959453,1781356256000,-49600.63423272,0.00011099,2]
[424959479,1781356256000,-516.0,0.00011287,5]
[424959478,1781356256000,-150.0,0.00011284,2]
[424959482,1781356256000,-1108.95049288,0.00011357,3]
[424959513,1781356256000,-150.0,0.00011779,2]
[424959514,1781356256000,-170.0,0.00011799,2]
[424959510,1781356256000,-500.0,0.00011753,2]
[424959511,1781356256000,-2000.0,0.00011755,2]
[424959512,1781356256000,-150.0,0.00011768,2]
[424959515,1781356256000,-150.0,0.00011799,2]
[424959517,1781356256000,-500.0,0.00011836,2]
[424959518,1781356256000,-150.0,0.00011848,2]
[424959516,1781356256000,-150.0,0.00011808,2]
[424959519,1781356256000,-150.0,0.00011868,2]
[424959520,1781356256000,-150.0,0.00011868,2]
[424959523,1781356256000,-150.0,0.00011889,2]
[424959524,1781356256000,-312.0,0.00011917,2]
[424959522,1781356256000,-49600.63423265,0.00011888,2]
[424959525,1781356256000,-313.0,0.00011917,2]
[424959529,1781356256000,-150.0,0.00011958,2]
[424959532,1781356256000,-150.0,0.0001201,2]
[424959528,1781356256000,-234.86368354,0.00011955,2]
[424959530,1781356256000,-150.0,0.00011969,2]
[424959527,1781356256000,-150.0,0.00011938,2]
[424959531,1781356256000,-1352.59574916,0.0001197,2]
[424959526,1781356256000,-150.0,0.00011929,2]
[424959533,1781356256000,-150.0,0.0001205,2]
[424959509,1781356256000,-150.0,0.00011727,2]
[424959506,1781356256000,-150.0,0.0001166,2]
[424959521,1781356256000,-22095.17790713,0.00011887,2]
[424959508,1781356256000,-150.0,0.00011687,2]
[424959507,1781356256000,-150.0,0.0001166,2]
[424959483,1781356256000,-1108.95049288,0.00011357,3]
[424959485,1781356256000,-22095.17790713,0.00011363,2]
[424959487,1781356256000,-150.0,0.00011365,2]
[424959486,1781356256000,-49600.63423265,0.00011363,2]
[424959490,1781356256000,-150.0,0.00011405,2]
[424959484,1781356256000,-1108.95049289,0.00011357,3]
[424959488,1781356256000,-150.0,0.00011383,2]
[424959493,1781356256000,-150.0,0.00011452,2]
[424959489,1781356256000,-166.66,0.00011397,2]
[424959491,1781356256000,-150.0,0.00011422,2]
[424959492,1781356256000,-150.0,0.00011445,2]
[424959480,1781356256000,-166.66,0.00011288,2]
[424959504,1781356256000,-150.0,0.00011647,2]
[424959494,1781356256000,-150.0,0.00011452,2]
[424959496,1781356256000,-166.66,0.00011507,2]
[424959500,1781356256000,-150.0,0.00011566,2]
[424959501,1781356256000,-150.0,0.00011601,2]
[424959497,1781356256000,-150.0,0.00011521,2]
[424959499,1781356256000,-8546.32623551,0.00011556,2]
[424959498,1781356256000,-150.0,0.00011526,2]
[424959502,1781356256000,-150.0,0.00011607,2]
[424959503,1781356256000,-1252.0,0.0001163,2]
[424959505,1781356256000,-150.0,0.0001166,2]
[424959495,1781356256000,-150.0,0.00011486,2]
[424959570,1781356257000,-678.98656293,0.0001249,2]
[424959569,1781356257000,-678.98656293,0.0001249,2]
[424959565,1781356257000,-150.0,0.00012413,2]
[424959566,1781356257000,-150.0,0.00012453,2]
[424959560,1781356257000,-271.71547406,0.000124,2]
[424959564,1781356257000,-49600.63423265,0.00012412,2]
[424959561,1781356257000,-4885.23533525,0.000124,2]
[424959563,1781356257000,-22095.17790713,0.00012412,2]
[424959568,1781356257000,-12092.0,0.00012466,2]
[424959572,1781356257000,-215.3825728,0.00012493,2]
[424959562,1781356257000,-283.72275254,0.00012412,2]
[424959571,1781356257000,-284.03421377,0.00012493,2]
[424959580,1781356257000,-500.0,0.00012499,2]
[424959575,1781356257000,-295.39287249,0.00012493,2]
[424959576,1781356257000,-190.82024837,0.00012493,2]
[424959574,1781356257000,-252.02122671,0.00012493,2]
[424959573,1781356257000,-193.79231313,0.00012493,2]
[424959577,1781356257000,-500.0,0.00012498,2]
[424959581,1781356257000,-500.0,0.00012499,2]
[424959582,1781356257000,-500.0,0.00012499,2]
[424959579,1781356257000,-1108.95049288,0.00012499,3]
[424959583,1781356257000,-500.0,0.00012499,2]
[424959587,1781356257000,-500.0,0.00012499,2]
[424959584,1781356257000,-500.0,0.00012499,2]
[424959578,1781356257000,-300.0,0.00012498,2]
[424959559,1781356257000,-2644.50096909,0.000124,2]
[424959535,1781356257000,-150.0,0.00012077,2]
[424959558,1781356257000,-150.0,0.00012372,2]
[424959586,1781356257000,-500.0,0.00012499,2]
[424959534,1781356257000,-256.57578903,0.00012066,2]
[424959537,1781356257000,-150.0,0.00012077,2]
[424959536,1781356257000,-150.0,0.00012077,2]
[424959540,1781356257000,-213.81315752,0.00012108,2]
[424959538,1781356257000,-971.03912997,0.00012086,2]
[424959539,1781356257000,-150.0,0.0001209,2]
[424959542,1781356257000,-150.0,0.0001213,2]
[424959541,1781356257000,-8546.32623551,0.00012114,2]
[424959544,1781356257000,-960.0,0.00012166,2]
[424959543,1781356257000,-150.0,0.00012136,2]
[424959567,1781356257000,-2564.0,0.00012466,2]
[424959546,1781356257000,-16385.4,0.00012204,2]
[424959547,1781356257000,-150.0,0.00012211,2]
[424959549,1781356257000,-150.0,0.00012216,2]
[424959550,1781356257000,-150.0,0.00012251,2]
[424959552,1781356257000,-150.0,0.00012285,2]
[424959551,1781356257000,-150.0,0.00012285,2]
[424959554,1781356257000,-150.0,0.00012315,2]
[424959556,1781356257000,-150.0,0.00012332,2]
[424959548,1781356257000,-150.0,0.00012216,2]
[424959553,1781356257000,-150.0,0.00012292,2]
[424959557,1781356257000,-150.0,0.00012354,2]
[424959555,1781356257000,-332.14,0.00012329,2]
[424959545,1781356257000,-150.0,0.00012171,2]
[424959585,1781356257000,-500.0,0.00012499,2]
[424959642,1781356257000,-1359.0,0.00013396,2]
[424959589,1781356257000,-1108.95049288,0.00012499,3]
[424959617,1781356257000,-1071.0,0.00012798,2]
[424959619,1781356257000,-388.34,0.00012807,2]
[424959621,1781356257000,-2000.0,0.00012823,2]
[424959618,1781356257000,-5565.4,0.000128,2]
[424959620,1781356257000,-1731.84,0.00012807,2]
[424959624,1781356257000,-671.71067639,0.00012959,2]
[424959634,1781356257000,-212.50083149,0.00013179,2]
[424959623,1781356257000,-300.0,0.00012959,2]
[424959626,1781356257000,-300.0,0.00012959,2]
[424959629,1781356257000,-298.61,0.00013076,2]
[424959628,1781356257000,-164.96,0.00012987,2]
[424959614,1781356257000,-8546.32623551,0.00012671,2]
[424959627,1781356257000,-300.0,0.00012959,2]
[424959625,1781356257000,-300.0,0.00012959,2]
[424959630,1781356257000,-690.46,0.00013076,2]
[424959632,1781356257000,-2000.0,0.00013168,2]
[424959633,1781356257000,-501.14672318,0.00013168,2]
[424959635,1781356257000,-8546.32623551,0.00013228,2]
[424959639,1781356257000,-500.0,0.00013356,2]
[424959636,1781356257000,-283.72275252,0.00013308,2]
[424959637,1781356257000,-500.0,0.00013356,2]
[424959641,1781356257000,-960.0,0.00013383,2]
[424959640,1781356257000,-1500.0,0.00013375,2]
[424959588,1781356257000,-500.0,0.00012499,2]
[424959631,1781356257000,-255.93697023,0.0001312,2]
[424959615,1781356257000,-247.68252316,0.00012781,7]
[424959638,1781356257000,-500.0,0.00013356,2]
[424959611,1781356257000,-620.0,0.000126,2]
[424959616,1781356257000,-186.85282492,0.00012781,7]
[424959591,1781356257000,-300.0,0.00012499,2]
[424959590,1781356257000,-1108.95049289,0.00012499,3]
[424959594,1781356257000,-300.0,0.00012499,2]
[424959592,1781356257000,-666.0,0.00012499,2]
[424959595,1781356257000,-300.0,0.00012499,2]
[424959597,1781356257000,-250.0,0.000125,2]
[424959596,1781356257000,-450.0,0.000125,5]
[424959599,1781356257000,-182.725897,0.000125,2]
[424959598,1781356257000,-5239543.14947928,0.000125,3]
[424959601,1781356257000,-182.725897,0.000125,2]
[424959604,1781356257000,-172.1766683,0.000125,2]
[424959593,1781356257000,-300.0,0.00012499,2]
[424959603,1781356257000,-170.0,0.000125,2]
[424959600,1781356257000,-182.725897,0.000125,2]
[424959605,1781356257000,-200.0,0.00012511,2]
[424959610,1781356257000,-950.0,0.000126,2]
[424959608,1781356257000,-212.50083149,0.00012575,2]
[424959609,1781356257000,-179.58165418,0.00012575,2]
[424959606,1781356257000,-700.0,0.0001257,2]
[424959607,1781356257000,-150.84439283,0.00012575,2]
[424959612,1781356257000,-1000.0,0.000126,2]
[424959622,1781356257000,-283.72275252,0.0001286,2]
[424959613,1781356257000,-20878.07718858,0.00012662,2]
[424959602,1781356257000,-182.725897,0.000125,2]
[424959677,1781356258000,-500.0,0.00013698,2]
[424959678,1781356258000,-500.0,0.00013698,2]
[424959674,1781356258000,-507.41273855,0.00013698,2]
[424959671,1781356258000,-500.0,0.00013698,2]
[424959672,1781356258000,-500.0,0.00013698,2]
[424959675,1781356258000,-500.0,0.00013698,2]
[424959676,1781356258000,-500.0,0.00013698,2]
[424959669,1781356258000,-500.0,0.00013698,2]
[424959673,1781356258000,-500.0,0.00013698,2]
[424959684,1781356258000,-500.0,0.00013698,2]
[424959686,1781356258000,-500.0,0.00013698,2]
[424959679,1781356258000,-500.0,0.00013698,2]
[424959680,1781356258000,-500.0,0.00013698,2]
[424959681,1781356258000,-500.0,0.00013698,2]
[424959683,1781356258000,-500.0,0.00013698,2]
[424959685,1781356258000,-500.0,0.00013698,2]
[424959688,1781356258000,-500.0,0.00013698,2]
[424959689,1781356258000,-500.0,0.00013698,2]
[424959695,1781356258000,-500.0,0.00013698,2]
[424959693,1781356258000,-500.0,0.00013698,2]
[424959690,1781356258000,-500.0,0.00013698,2]
[424959667,1781356258000,-500.0,0.00013698,2]
[424959682,1781356258000,-500.0,0.00013698,2]
[424959668,1781356258000,-500.0,0.00013698,2]
[424959652,1781356258000,-10000.0,0.00013656,2]
[424959666,1781356258000,-500.0,0.00013698,2]
[424959696,1781356258000,-500.0,0.00013698,2]
[424959644,1781356258000,-203.782588,0.00013424,2]
[424959643,1781356258000,-1275.0,0.00013396,2]
[424959646,1781356258000,-150.0,0.00013608,2]
[424959647,1781356258000,-150.0,0.00013608,2]
[424959654,1781356258000,-300.0,0.00013697,2]
[424959649,1781356258000,-2644.50096908,0.0001365,2]
[424959653,1781356258000,-300.0,0.00013697,2]
[424959650,1781356258000,-271.71547404,0.0001365,2]
[424959655,1781356258000,-300.0,0.00013697,2]
[424959645,1781356258000,-150.0,0.00013608,2]
[424959651,1781356258000,-4885.23533525,0.0001365,2]
[424959648,1781356258000,-482.23,0.00013631,2]
[424959658,1781356258000,-500.0,0.00013698,2]
[424959657,1781356258000,-500.0,0.00013698,2]
[424959659,1781356258000,-500.0,0.00013698,2]
[424959664,1781356258000,-500.0,0.00013698,2]
[424959661,1781356258000,-580.09962595,0.00013698,2]
[424959665,1781356258000,-500.0,0.00013698,2]
[424959660,1781356258000,-500.0,0.00013698,2]
[424959656,1781356258000,-500.0,0.00013698,2]
[424959663,1781356258000,-500.0,0.00013698,2]
[424959662,1781356258000,-500.0,0.00013698,2]
[424959670,1781356258000,-500.0,0.00013698,2]
[424959694,1781356258000,-500.0,0.00013698,2]
[424959744,1781356258000,-500.0,0.00013698,2]
[424959691,1781356258000,-300.0,0.00013698,2]
[424959728,1781356258000,-500.0,0.00013698,2]
[424959722,1781356258000,-500.0,0.00013698,2]
[424959725,1781356258000,-500.0,0.00013698,2]
[424959729,1781356258000,-500.0,0.00013698,2]
[424959724,1781356258000,-500.0,0.00013698,2]
[424959726,1781356258000,-500.0,0.00013698,2]
[424959727,1781356258000,-500.0,0.00013698,2]
[424959731,1781356258000,-500.0,0.00013698,2]
[424959730,1781356258000,-500.0,0.00013698,2]
[424959732,1781356258000,-187.17181277,0.00013698,2]
[424959735,1781356258000,-505.05129611,0.00013698,2]
[424959734,1781356258000,-500.0,0.00013698,2]
[424959739,1781356258000,-500.0,0.00013698,2]
[424959738,1781356258000,-500.0,0.00013698,2]
[424959736,1781356258000,-500.0,0.00013698,2]
[424959737,1781356258000,-500.0,0.00013698,2]
[424959741,1781356258000,-500.0,0.00013698,2]
[424959742,1781356258000,-500.0,0.00013698,2]
[424959743,1781356258000,-500.0,0.00013698,2]
[424959740,1781356258000,-500.0,0.00013698,2]
[424959745,1781356258000,-500.0,0.00013698,2]
[424959746,1781356258000,-500.0,0.00013698,2]
[424959687,1781356258000,-500.0,0.00013698,2]
[424959720,1781356258000,-500.0,0.00013698,2]
[424959721,1781356258000,-500.0,0.00013698,2]
[424959733,1781356258000,-500.0,0.00013698,2]
[424959719,1781356258000,-500.0,0.00013698,2]
[424959723,1781356258000,-500.0,0.00013698,2]
[424959692,1781356258000,-500.0,0.00013698,2]
[424959698,1781356258000,-500.0,0.00013698,2]
[424959708,1781356258000,-500.0,0.00013698,2]
[424959697,1781356258000,-500.0,0.00013698,2]
[424959699,1781356258000,-500.0,0.00013698,2]
[424959701,1781356258000,-242.18,0.00013698,2]
[424959700,1781356258000,-500.0,0.00013698,2]
[424959702,1781356258000,-500.0,0.00013698,2]
[424959703,1781356258000,-500.0,0.00013698,2]
[424959705,1781356258000,-500.0,0.00013698,2]
[424959706,1781356258000,-500.0,0.00013698,2]
[424959704,1781356258000,-500.0,0.00013698,2]
[424959717,1781356258000,-500.0,0.00013698,2]
[424959711,1781356258000,-500.0,0.00013698,2]
[424959709,1781356258000,-500.0,0.00013698,2]
[424959713,1781356258000,-500.0,0.00013698,2]
[424959710,1781356258000,-500.0,0.00013698,2]
[424959712,1781356258000,-500.0,0.00013698,2]
[424959718,1781356258000,-526.73025528,0.00013698,2]
[424959715,1781356258000,-500.0,0.00013698,2]
[424959716,1781356258000,-500.0,0.00013698,2]
[424959714,1781356258000,-500.0,0.00013698,2]
[424959707,1781356258000,-500.0,0.00013698,2]
[424959786,1781356259000,-500.0,0.00013698,2]
[424959792,1781356259000,-500.0,0.00013698,2]
[424959791,1781356259000,-190.23537112,0.00013698,2]